fUSD/lending_fUSD_20250321
["ID","MTS","AMOUNT","RATE_DAILY","PERIOD"]
[356488793,1742523047802,-347.907167,0.00031468,7]
[356488794,1742523047811,-347.907167,0.00031468,7]
[356488795,1742523047822,-191.53181,0.00031468,7]
[356488796,1742523047832,-175.172049,0.00031468,7]
[356488797,1742523047842,-191.53181,0.00031468,7]
[356488798,1742523047851,-175.172049,0.00031468,7]
[356488799,1742523047861,-191.53181,0.00031468,7]
[356488800,1742523047870,-191.53181,0.00031468,7]
[356488801,1742523047880,-175.172049,0.00031468,7]
[356488802,1742523047890,-175.172049,0.00031468,7]
[356488803,1742523047900,-151.0,0.00031468,7]
[356488804,1742523047909,-151.0,0.00031468,7]
[356488805,1742523047919,-151.0,0.00031468,7]
[356488806,1742523047928,-151.622076,0.00031468,7]
[356488807,1742523047937,-151.0,0.00031468,7]
[356488808,1742523047946,-151.0,0.00031468,7]
[356488809,1742523047957,-151.0,0.00031468,7]
[356488810,1742523047967,-151.0,0.00031468,7]
[356488811,1742523047976,-151.0,0.00031468,7]
[356488812,1742523047985,-180.649675,0.00031468,7]
[356488813,1742523047995,-151.0,0.00031468,7]
[356488814,1742523048005,-151.0,0.00031468,7]
[356488815,1742523048014,-151.0,0.00031468,7]
[356488816,1742523048024,-151.0,0.00031468,7]
[356488817,1742523048035,-1055.091079,0.00031468,7]
[356488818,1742523048046,-1055.091079,0.00031468,7]
[356488819,1742523048056,-151.0,0.00031468,7]
[356488820,1742523048066,-1055.091079,0.00031468,7]
[356488821,1742523048076,-1055.091079,0.00031468,7]
[356488822,1742523048088,-151.0,0.00031468,7]
[356488823,1742523048098,-151.567785,0.00031468,7]
[356488824,1742523048107,-151.0,0.00031468,7]
[356488825,1742523048116,-159.639592,0.00031468,7]
[356488826,1742523048125,-159.639592,0.00031468,7]
[356488827,1742523048134,-299.285309,0.00031468,7]
[356488828,1742523048143,-159.639592,0.00031468,7]
[356488829,1742523048153,-159.639592,0.00031468,7]
[356488830,1742523048162,-151.0,0.00031468,7]
[356488831,1742523048172,-299.285309,0.00031468,7]
[356488832,1742523048182,-151.0,0.00031468,7]
[356488833,1742523048192,-151.0,0.00031468,7]
[356488834,1742523048202,-151.0,0.00031468,7]
[356488835,1742523048211,-151.0,0.00031468,7]
[356488836,1742523048220,-195.60021,0.00031468,7]
[356488837,1742523048230,-151.0,0.00031468,7]
[356488838,1742523048240,-398.712821,0.00031468,7]
[356488839,1742523048249,-398.712821,0.00031468,7]
[356488840,1742523048258,-10000.0,0.00031468,7]
[356488841,1742523048267,-10000.0,0.00031468,7]
[356488842,1742523048276,-151.0,0.00031468,7]
[356488843,1742523048286,-10000.0,0.00031468,7]
[356488844,1742523048295,-343.5415,0.00031468,7]
[356488845,1742523048304,-176.216498,0.00031468,7]
[356488846,1742523048314,-396.656744,0.00031468,7]
[356488847,1742523048323,-151.0,0.00031468,7]
[356488848,1742523048333,-343.5415,0.00031468,7]
[356488849,1742523048342,-151.0,0.00031468,7]
[356488850,1742523048352,-151.0,0.00031468,7]
[356488851,1742523048362,-176.216498,0.00031468,7]
[356488852,1742523048371,-396.656744,0.00031468,7]
[356488853,1742523048381,-295.54547,0.00031468,7]
[356488854,1742523048390,-151.0,0.00031468,7]
[356488855,1742523048399,-344.937165,0.00031468,7]
[356488856,1742523048408,-344.937165,0.00031468,7]
[356488857,1742523048418,-151.0,0.00031468,7]
[356488858,1742523048427,-151.0,0.00031468,7]
[356488859,1742523048438,-151.0,0.00031468,7]
[356488860,1742523048447,-298.65377,0.00031468,7]
[356488861,1742523048457,-298.65377,0.00031468,7]
[356488862,1742523048466,-151.0,0.00031468,7]
[356488863,1742523048476,-509.071367,0.00031468,7]
[356488864,1742523048485,-151.0,0.00031468,7]
[356488865,1742523048494,-509.071367,0.00031468,7]
[356488866,1742523048504,-8457.77935833,0.00031468,2]
[356488867,1742523048513,-151.0,0.00031469,7]
[356488868,1742523048522,-150.0,0.00031469,2]
[356488869,1742523048532,-150.0,0.00031471,2]
[356488870,1742523048542,-502.07203649,0.00031473,5]
[356488871,1742523048551,-501.27131705,0.00031473,5]
[356488872,1742523048561,-150.0,0.00031474,2]
[356488873,1742523048570,-150.0,0.00031475,2]
[356488874,1742523048580,-189.0,0.00031476,5]
[356488875,1742523048590,-3139.7136938,0.00031476,120]
[356488876,1742523048600,-3233.67848304,0.00031476,2]
[356488877,1742523048610,-853.44352733,0.00031476,2]
[356488878,1742523048620,-40611.25040385,0.00031476,2]
[356488879,1742523048663,-9401.40714496,0.00031476,2]
[356488880,1742523048672,-1070.37733804,0.00031476,2]
[356488881,1742523048688,-139.62266196,0.00031476,2]
[356488882,1742523048698,-298.96922718,0.00031476,2]
[356488883,1742523048712,-399.26521496,0.00031476,2]
[356488884,1742523048722,-359.67562865,0.00031476,2]
[356488885,1742523048731,-345.79423981,0.00031476,2]
[356488886,1742523048741,-756.15602812,0.00031476,2]
[356488887,1742523048754,-1509.79820604,0.00031476,2]
[356488888,1742523048764,-1022.1483304,0.00031476,2]
[356488889,1742523048774,-2809.06482202,0.00031476,2]
[356488891,1742523347440,1000.0,0.00031476,30]
[356488892,1742523347811,1000.0,0.00031476,30]
[356488893,1742523348401,1000.0,0.00031476,30]
[356488894,1742523348991,1000.0,0.00031476,30]
[356488895,1742523350021,1000.0,0.00031476,30]
[356488896,1742523351160,1000.0,0.00031476,30]
[356488897,1742523351765,1000.0,0.00031476,30]
[356488898,1742523352356,992.00876708,0.00031476,30]
[356488899,1742523538707,5000.0,0.00031508,30]
[356488900,1742523639196,1600.0,0.00031508,120]
[356488901,1742523848430,2816.07024931,9.71e-05,2]
[356488902,1742523909454,-230.68395514,0.00012,2]
[356488903,1742523941720,150.6371693,0.0002,30]
[356488904,1742523942489,159.41512434,0.00031508,30]
[356488905,1742524003224,500.0,0.00031508,120]
[356488906,1742524010086,347.59460821,9.77e-05,2]
[356488907,1742524021781,156.47581189,0.00031508,30]
[356488908,1742524025038,172.87636445,9.14e-05,2]
[356488909,1742524070327,6087.34007787,0.00031508,120]
[356488910,1742524072451,-150.0,0.0001,2]
[356488911,1742524077999,-1195.30503807,0.0001,2]
[356488913,1742524113888,-236.26678315,9.999e-05,2]
[356488915,1742524154691,2184.29,0.00031508,30]
[356488916,1742524155882,-230.683956,9.95e-05,2]
[356488917,1742524169461,-188.16482519,0.0001,2]
[356488919,1742524209285,-150.0,9.999e-05,2]
[356488922,1742524209313,-150.0,0.0001,2]
[356488923,1742524209340,-3010.38430067,0.0001,2]
[356488925,1742524209370,-1668.37999088,0.0001,2]
[356488928,1742524209404,-2407.98560613,0.0001,2]
[356488930,1742524211568,-158.77,0.0001,2]
[356488937,1742524231422,-3056.0375105,0.0001,2]
[356488938,1742524231530,-4402.34401688,0.0001,2]
[356488939,1742524231541,-2696.41317995,0.0001,2]
[356488940,1742524231552,-379930.12974154,0.0001,2]
[356488941,1742524231563,-78726.9999999,0.0001,2]
[356488942,1742524231574,-413.21193929,0.0001,2]
[356488943,1742524231588,-628.42,0.0001,2]
[356488944,1742524231600,-1139.681725,0.0001,2]
[356488945,1742524231611,-1344.33414289,0.0001,2]
[356488946,1742524231621,-447.46047696,0.0001,2]
[356488947,1742524231685,-2208.97184433,0.0001,2]
[356488948,1742524231700,-71856.22462864,0.0001,2]
[356488955,1742524233584,-4024.6084,0.0001,2]
[356488956,1742524237298,-2125.0,0.0001,2]
[356488957,1742524237404,-614.6374616,0.0001,2]
[356488958,1742524237464,-492.75022879,0.0001,2]
[356488959,1742524237476,-6725.4616176,0.0001,2]
[356488960,1742524237488,-12195.57419836,0.0001,2]
[356488961,1742524237520,-1680.61684193,0.0001,2]
[356488962,1742524237576,-1029.578,0.0001,2]
[356489007,1742524239552,-353.28825739,0.0001,2]
[356489008,1742524239565,-2467.30921759,0.0001,2]
[356489009,1742524239576,-609.5,0.0001,2]
[356489010,1742524239587,-7901.67657273,0.0001,2]
[356489011,1742524239599,-1034.6788,0.0001,2]
[356489012,1742524239610,-293.6638029,0.0001,2]
[356489013,1742524239622,-328.96960426,0.0001,2]
[356489014,1742524239633,-1106.48039432,0.0001,2]
[356489015,1742524239649,-276572.46070873,0.0001,2]
[356489016,1742524239660,-13327.87519129,0.0001,2]
[356489017,1742524239671,-5663.00549854,0.0001,2]
[356489018,1742524239682,-453931.69179707,0.0001,2]
[356489019,1742524239694,-14351.90983459,0.0001,2]
[356489020,1742524239714,-643.47365204,0.0001,2]
[356489021,1742524239725,-1025.06710056,0.0001,2]
[356489022,1742524239737,-415.405,0.0001,2]
[356489023,1742524239752,-2335.29685159,0.0001,2]
[356489024,1742524239764,-1039.83442768,0.0001,2]
[356489025,1742524239777,-47312.4961956,0.0001,2]
[356489026,1742524239788,-2565.53618758,0.0001,2]
[356489027,1742524239800,-1974.6255799,0.0001,2]
[356489028,1742524239811,-3150.11392817,0.0001,2]
[356489029,1742524239843,-221.54334711,0.0001,2]
[356489030,1742524239855,-1369.97507927,0.0001,2]
[356489031,1742524239906,-52225.49702505,0.0001,2]
[356489035,1742524242417,-299.26614899,0.0001,2]
[356489036,1742524242432,-6061.59591651,0.0001,2]
[356489037,1742524242443,-1781.2649874,0.0001,2]
[356489038,1742524242471,-686.0995385,0.0001,2]
[356489039,1742524242528,-4327.4,0.0001,2]
[356489040,1742524242540,-4540.0,0.0001,2]
[356489041,1742524242552,-29813.36594016,0.0001,2]
[356489042,1742524242563,-5321.32662832,0.0001,2]
[356489043,1742524242573,-1195.30503807,0.0001,2]
[356489044,1742524242582,-150.0,0.00010999,2]
[356489045,1742524242592,-150.0,0.00011124,2]
[356489046,1742524242602,-312.33814392,0.00011773,2]
[356489047,1742524242611,-270.65014109,0.00011873,2]
[356489048,1742524242621,-540.04042198,0.00011973,2]
[356489049,1742524242631,-161.33956189,0.00011973,2]
[356489050,1742524242641,-18668.08256034,0.00012,2]
[356489051,1742524242653,-2239.10260521,0.00012,2]
[356489052,1742524242664,-2155.7435486,0.00012,2]
[356489053,1742524242676,-838.95,0.00012,2]
[356489056,1742524243290,-433.29969009,0.00012,2]
[356489057,1742524243302,-1294.89041727,0.00012,2]
[356489058,1742524243313,-20893.71287994,0.00012,2]
[356489059,1742524243325,-2394.13040467,0.00012,2]
[356489060,1742524243336,-403.89424312,0.00012,2]
[356489061,1742524243348,-810.44369998,0.00012,2]
[356489062,1742524243360,-9296.40286663,0.00012,2]
[356489063,1742524243375,-18635.74362997,0.00012,2]
[356489064,1742524243387,-213678.72398223,0.00012,2]
[356489065,1742524243398,-3899.6,0.00012,2]
[356489066,1742524243413,-383.30164025,0.00012,2]
[356489067,1742524243425,-649.83334176,0.00012,2]
[356489068,1742524245682,-272.25,0.00012,2]
[356489069,1742524245694,-534.55999998,0.00012,2]
[356489070,1742524245788,-1666336.80923758,0.00012,2]
[356489071,1742524245798,-2630.96,0.000137,2]
[356489072,1742524245808,-2630.96,0.000137,2]
[356489073,1742524245817,-694.19229314,0.00016048,2]
[356489074,1742524245826,-312.33814392,0.00016148,2]
[356489075,1742524245835,-52191.52415799,0.00019,2]
[356489076,1742524245844,-170.1863956,0.000196,2]
[356489077,1742524245853,-270.65014106,0.00019711,2]
[356489078,1742524245862,-1149.9362892,0.000198,2]
[356489079,1742524245871,-5000.0,0.0002,2]
[356489080,1742524245881,-2000.0,0.0002,4]
[356489081,1742524245891,-258.95084789,0.000201,2]
[356489082,1742524245900,-312.33814392,0.00020523,2]
[356489083,1742524245909,-250.0,0.00021,2]
[356489084,1742524245919,-300.0,0.00023,2]
[356489085,1742524245928,-319.68122321,0.0002301,120]
[356489086,1742524245937,-1149.93628919,0.00023589,2]
[356489087,1742524245946,-151.43,0.00023927,2]
[356489088,1742524245956,-151.43,0.00023991,2]
[356489090,1742524245965,-151.43,0.00024055,2]
[356489091,1742524245974,-151.43,0.00024119,2]
[356489092,1742524245986,-151.43,0.00024182,2]
[356489093,1742524245995,-151.43,0.00024246,2]
[356489094,1742524246005,-151.43,0.0002431,2]
[356489095,1742524246015,-151.43,0.00024374,2]
[356489096,1742524246024,-151.43,0.00024438,2]
[356489097,1742524246033,-151.43,0.00024502,2]
[356489098,1742524246042,-151.43,0.00024565,2]
[356489099,1742524246051,-151.43,0.00024629,2]
[356489100,1742524246061,-151.43,0.00024693,2]
[356489101,1742524246071,-151.43,0.00024757,2]
[356489102,1742524246080,-44512.93182313,0.000248,3]
[356489103,1742524246092,-4700.0,0.000248,3]
[356489104,1742524246104,-832.07055688,0.000248,3]
[356489107,1742525230731,160.3,0.00016402,15]
[356489118,1742525431640,-150.0,0.00017039,2]
[356489119,1742525431650,-350.0,0.00017675,2]
[356489120,1742525431659,-350.0,0.00018043,2]
[356489121,1742525431669,-350.0,0.00018043,2]
[356489122,1742525431678,-150.0,0.00018043,2]
[356489123,1742525431687,-150.0,0.00018254,2]
[356489124,1742525431697,-250.0,0.00021,2]
[356489125,1742525431706,-251.10660812,0.00021673,2]
[356489126,1742525431716,-1343.39788,0.00021946,2]
[356489127,1742525431726,-159.26,0.00022046,2]
[356489128,1742525431735,-1000.0,0.00022446,2]
[356489129,1742525431744,-300.64,0.00022705,2]
[356489130,1742525431757,-1148.74,0.00022752,2]
[356489131,1742525431768,-605.73,0.00022881,2]
[356489132,1742525431777,-605.73,0.00022929,2]
[356489133,1742525431786,-605.73,0.00022977,2]
[356489134,1742525431974,-300.0,0.00023,2]
[356489135,1742525431984,-547.05,0.00023015,2]
[356489136,1742525431993,-605.73,0.00023025,2]
[356489137,1742525432002,-205.3,0.00023042,2]
[356489138,1742525432011,-605.73,0.00023073,2]
[356489139,1742525432020,-605.73,0.00023121,2]
[356489140,1742525432029,-605.73,0.0002317,2]
[356489141,1742525432038,-605.73,0.00023218,2]
[356489142,1742525432047,-605.73,0.00023266,2]
[356489143,1742525432056,-250.0,0.00023291,2]
[356489144,1742525432065,-605.73,0.00023314,2]
[356489145,1742525432075,-175.02,0.00023331,2]
[356489146,1742525432085,-405.0,0.00023342,2]
[356489147,1742525432094,-2000.0,0.00023342,2]
[356489148,1742525432103,-1727.23,0.00023361,2]
[356489149,1742525432113,-605.73,0.00023362,2]
[356489150,1742525432122,-3576.72,0.0002341,2]
[356489151,1742525432131,-605.73,0.0002341,2]
[356489152,1742525432140,-605.73,0.00023459,2]
[356489153,1742525432150,-605.73,0.00023507,2]
[356489154,1742525432160,-605.73,0.00023555,2]
[356489155,1742525432169,-3120.31,0.00023575,2]
[356489156,1742525432179,-802.08,0.00023593,2]
[356489157,1742525432188,-605.73,0.00023603,2]
[356489158,1742525432198,-1686.42,0.00023635,2]
[356489159,1742525432208,-605.73,0.00023651,2]
[356489160,1742525432218,-3630.66,0.00023693,2]
[356489162,1742525432227,-605.73,0.00023699,2]
[356489163,1742525432236,-605.73,0.00023748,2]
[356489164,1742525432246,-605.73,0.00023796,2]
[356489165,1742525432256,-250.31915297,0.000239,3]
[356489166,1742525432265,-919.94903137,0.00023973,2]
[356489167,1742525432275,-7082.76999322,0.0002399,2]
[356489168,1742525432284,-500.0,0.00024025,2]
[356489169,1742525432294,-234.09961354,0.00024025,2]
[356489170,1742525432305,-500.0,0.00024073,2]
[356489171,1742525432315,-2038.07,0.00024554,2]
[356489172,1742525432323,-6810.37,0.00024554,2]
[356489173,1742525432333,-1120.42,0.00024554,2]
[356489174,1742525432343,-9999.99,0.00024554,2]
[356489175,1742525432353,-150.99,0.00024554,2]
[356489176,1742525432363,-965.15,0.00024554,2]
[356489177,1742525432372,-5135.16,0.00024554,2]
[356489178,1742525432382,-3758.18105038,0.00024554,2]
[356489179,1742525432406,-298.86,0.00024554,2]
[356489180,1742525432417,-2995.11799,0.00024554,2]
[356489181,1742525432428,-978.02127164,0.00024554,2]
[356489182,1742525432439,-1261.21968798,0.00024554,2]
[356489183,1742525432448,-150.0,0.00024633,2]
[356489184,1742525432457,-178.81,0.00024685,2]
[356489185,1742525432467,-5751.72,0.00024747,2]
[356489186,1742525432476,-315.85299,0.00024757,34]
[356489187,1742525432486,-1500.0,0.00024763,2]
[356489188,1742525432495,-4598.48232009,0.0002477,2]
[356489189,1742525432530,-351.01708758,0.0002477,2]
[356489190,1742525432539,-163.23,0.00024791,30]
[356489191,1742525432549,-7001.11991981,0.000248,2]
[356489192,1742525432559,-832.07,0.000248,3]
[356489193,1742525432569,-151.43,0.00024821,2]
[356489194,1742525432578,-5586.79523197,0.00024854,2]
[356489195,1742525432589,-1414.32468784,0.00024854,2]
[356489196,1742525432598,-7001.11991981,0.0002486,2]
[356489197,1742525432608,-13163.43,0.00024864,2]
[356489198,1742525432617,-7001.11991981,0.0002487,2]
[356489199,1742525432627,-23890.0,0.0002488,2]
[356489200,1742525432636,-151.43,0.00024884,2]
[356489201,1742525432645,-164.619292,0.000249,7]
[356489202,1742525432656,-152.881341,0.000249,7]
[356489203,1742525432666,-277.862669,0.000249,7]
[356489204,1742525432675,-317.325395,0.000249,7]
[356489205,1742525432685,-317.325395,0.000249,7]
[356489206,1742525432694,-241.74,0.00024906,2]
[356489207,1742525432703,-162.77,0.00024939,2]
[356489208,1742525432712,-7001.11991981,0.00024962,2]
[356489209,1742525432721,-300.64,0.00024969,2]
[356489210,1742525432731,-1664.88,0.00024972,2]
[356489211,1742525432740,-489.42,0.00024972,2]
[356489212,1742525432749,-7001.11991981,0.0002499,2]
[356489213,1742525432759,-3097.16,0.00024995,2]
[356489214,1742525432772,-1000.0,0.00025,2]
[356489215,1742525432781,-350.0,0.00025,2]
[356489216,1742525432790,-1178.56,0.00025038,2]
[356489217,1742525432799,-1000.0,0.00025252,2]
[356489218,1742525432810,-1339.26,0.0002527,2]
[356489219,1742525432819,-200.0,0.00025335,2]
[356489220,1742525432829,-200.0,0.00025376,2]
[356489221,1742525432839,-414.393,0.00025816,11]
[356489222,1742525432849,-185.32,0.00025965,2]
[356489223,1742525432858,-175.02,0.00026247,120]
[356489224,1742525432868,-974.78,0.00026532,2]
[356489225,1742525432877,-295.47,0.00026849,2]
[356489226,1742525432886,-161.62,0.00026849,2]
[356489227,1742525432895,-400.0,0.00027,2]
[356489228,1742525432904,-300.64,0.00027233,2]
[356489229,1742525432914,-7001.11991981,0.00027387,2]
[356489230,1742525432923,-351.16,0.00027397,2]
[356489231,1742525432933,-919.94903135,0.00027447,2]
[356489232,1742525432942,-152.0,0.00027605,3]
[356489233,1742525432951,-14002.2398396,0.0002776,2]
[356489234,1742525432961,-42006.7195189,0.0002777,2]
[356489235,1742525432970,-81667.79572139,0.0002778,2]
[356489236,1742525432983,-317.325395,0.0002794,7]
[356489237,1742525432992,-317.325395,0.0002794,7]
[356489238,1742525433001,-7001.11991981,0.0002796,2]
[356489239,1742525433011,-2697.05,0.0002797,2]
[356489240,1742525433021,-270.37984416,0.00028,60]
[356489241,1742525433030,-1000.0,0.00028057,2]
[356489242,1742525433039,-215.76,0.00028091,120]
[356489243,1742525433049,-4949.49940761,0.00028125,2]
[356489244,1742525433059,-351.16,0.00028767,2]
[356489245,1742525433069,-450.0,0.00029,2]
[356489246,1742525433079,-175.02,0.00029164,120]
[356489247,1742525433088,-300.64,0.00029497,2]
[356489248,1742525433098,-492.01235464,0.00029552,5]
[356489249,1742525433107,-315.853,0.00029757,34]
[356489250,1742525433118,-300.0,0.0003,2]
[356489251,1742525433127,-300.0,0.0003,2]
[356489252,1742525433137,-341.85581582,0.0003,2]
[356489253,1742525433147,-351.16,0.00030137,2]
[356489254,1742525433156,-1008.0,0.000303,2]
[356489255,1742525433167,-7001.11991981,0.00030386,2]
[356489256,1742525433177,-153.94,0.00030389,2]
[356489257,1742525433187,-411.97,0.00030389,2]
[356489258,1742525433196,-317.325395,0.00030396,7]
[356489259,1742525433206,-317.325395,0.00030396,7]
[356489260,1742525433216,-151.0,0.00030444,7]
[356489261,1742525433226,-151.0,0.00030444,7]
[356489262,1742525433236,-252.21604057,0.0003045,5]
[356489263,1742525433246,-811.08538672,0.00030483,2]
[356489264,1742525433256,-500.0,0.00030508,7]
[356489265,1742525433267,-758.5640393,0.00030531,4]
[356489266,1742525433277,-1000.0,0.00030863,2]
[356489267,1742525433287,-919.94903135,0.00030922,2]
[356489268,1742525433296,-1000.0,0.00031,30]
[356489269,1742525433307,-500.0,0.00031,2]
[356489270,1742525433317,-152.0,0.00031002,4]
[356489271,1742525433327,-14002.2398396,0.00031138,2]
[356489272,1742525433337,-35005.5995991,0.00031148,2]
[356489273,1742525433347,-26365.36405058,0.00031148,2]
[356489274,1742525433375,-1779.82992672,0.00031148,2]
[356489275,1742525433385,-470.34859366,0.00031158,2]
[356489279,1742525437642,-386.8134353,0.00031158,2]
[356489283,1742525440034,-300.75488705,0.00031158,2]
[356489284,1742525440046,-64956.02948399,0.00031158,2]
[356489285,1742525440056,-1000.0,0.000312,2]
[356489286,1742525440066,-14002.2398396,0.00031251,2]
[356489287,1742525440075,-8373.23245261,0.00031251,2]
[356489288,1742525440095,-459.87317457,0.00031251,2]
[356489289,1742525440197,-1928.73308199,0.00031251,2]
[356489290,1742525440210,-7914.0620872,0.00031251,2]
[356489309,1742525473448,-150.0,0.00030531,4]
[356489310,1742525480139,-150.0,0.00031258,7]
[356489311,1742525483514,-1.0,0.00031258,7]
[356489312,1742525483537,-249.0,0.00031258,7]
[356489313,1742525982189,-150.0,0.00027,3]
[356489314,1742525984741,-150.0,0.00031251,48]
[356489319,1742526576716,23271.13270838,0.00031484,30]
[356489324,1742526631835,-150.0,0.00027505,2]
[356489325,1742526631845,-279.46,0.0002816,2]
[356489326,1742526631854,-133.04,0.00028999,2]
[356489327,1742526632046,-45.85009331,0.00028999,2]
[356489328,1742526632055,-162.77,0.00029004,2]
[356489329,1742526632064,-370.8217689,0.00029059,2]
[356489330,1742526632074,-586.8209642,0.0002907,2]
[356489331,1742526632085,-272.77804196,0.0002907,2]
[356489332,1742526632094,-859.59900615,0.00029079,2]
[356489333,1742526632104,-1000.0,0.00029092,2]
[356489334,1742526632120,-370.8217689,0.0002917,2]
[356489335,1742526632130,-1702.69,0.00029179,2]
[356489336,1742526632140,-7271.67984855,0.00029259,2]
[356489337,1742526632167,-299.99,0.00029179,12]
[356489338,1742526632177,-718.889993,0.00029259,2]
[356489404,1742526637806,-417.46681366,0.00029259,2]
[356489405,1742526637820,-1571.50376747,0.00029259,2]
[356489406,1742526637832,-4989.91197732,0.00029259,2]
[356489407,1742526637841,-370.8217689,0.0002928,2]
[356489408,1742526637851,-1000.0,0.00029358,2]
[356489409,1742526637860,-5639.26625378,0.0002936,2]
[356489410,1742526637871,-50897.56208084,0.0002936,2]
[356489411,1742526637883,-359.28,0.0002936,2]
[356489412,1742526637894,-3821.21033686,0.0002936,2]
[356489413,1742526637967,-439.2082749,0.0002936,2]
[356489589,1742526640110,-328.7014259,0.0002936,2]
[356489692,1742526641633,-1334.07465491,0.0002936,2]
[356489827,1742526642940,-19517.05255864,0.0002936,2]
[356489836,1742526643010,-523.1466018,0.0002936,2]
[356489842,1742526643047,-900.39214911,0.0002936,2]
[356489862,1742526643651,-349.66610001,0.0002936,2]
[356489925,1742526645784,-5510.1542467,0.0002936,2]
[356489926,1742526645795,-496.302152,0.0002936,2]
[356489927,1742526645838,-11487.40386403,0.0002936,2]
[356489928,1742526645849,-348.95445286,0.0002936,2]
[356489929,1742526645860,-1421.58349036,0.0002936,2]
[356489930,1742526645891,-864.53248379,0.0002936,2]
[356489931,1742526645998,-1662.88740724,0.0002936,2]
[356489932,1742526646053,-2282.72730561,0.0002936,2]
[356489933,1742526646065,-250.28,0.0002936,2]
[356489934,1742526646107,-116828.83845643,0.0002936,2]
[356489935,1742526646122,-279.0414,0.0002936,2]
[356489936,1742526646163,-313.06330969,0.0002936,2]
[356489937,1742526646174,-6162.60099454,0.0002936,2]
[356489938,1742526646184,-643.96432199,0.0002938,2]
[356489939,1742526646194,-150.0,0.0002948,2]
[356489940,1742526646205,-250.0,0.00029517,2]
[356489941,1742526646215,-150.0,0.00029535,2]
[356489942,1742526646224,-183.35,0.00029588,120]
[356489943,1742526646235,-200.0,0.0002965,2]
[356489944,1742526646245,-150.62,0.00029701,2]
[356489945,1742526646254,-1686.18,0.00029887,120]
[356489946,1742526646264,-241.97518104,0.000299,5]
[356489947,1742526646274,-150.0,0.00029977,7]
[356489948,1742526646284,-358.66791253,0.0003026,2]
[356489952,1742527502429,-166.23,0.00021,2]
[356489953,1742527507369,-83.77,0.00021,2]
[356489954,1742527507648,-84.22,0.00023,2]
[356489955,1742527528473,-250.0,0.00011,2]
[356489956,1742527620704,502.61,0.00031486,30]
[356489957,1742527676182,-230.68395514,0.0001,2]
[356489958,1742527681616,-154.3501345,0.0001,2]
[356489960,1742527710099,-166.7558,0.0001,2]
[356489965,1742527733962,-161.44191272,9.999e-05,2]
[356489966,1742527741178,-338.55808728,9.999e-05,2]
[356489968,1742527741206,-332.62244684,9.999e-05,2]
[356489971,1742527741236,-4266.08922533,0.0001,2]
[356489973,1742527741269,-4937.26975945,0.0001,2]
[356489975,1742527741306,-4937.26975945,0.0001,2]
[356489976,1742527741345,-4937.26975945,0.0001,2]
[356489977,1742527741394,-300.0,9.999e-05,2]
[356489978,1742527741426,-4550.96290056,0.0001,2]
[356489979,1742527741467,-4937.26975945,0.0001,2]
[356489980,1742527742045,-221.54334711,0.0001,2]
[356489981,1742527742161,-4937.26975945,0.0001,2]
[356489982,1742527765015,-161.441912,9.95e-05,2]
[356489987,1742527803571,-150.0,9.999e-05,2]
[356489988,1742527820890,-300.0,9.999e-05,2]
[356489989,1742527820916,-12.92909922,0.0001,2]
[356489990,1742527822867,-183.26898878,0.0001,2]
[356490007,1742527831998,-16384.31168974,0.0001,2]
[356490008,1742527832011,-3013.45883096,0.0001,2]
[356490009,1742527832059,-700.0,0.0001,2]
[356490010,1742527832117,-1550.0,0.0001,2]
[356490011,1742527832128,-7564.10273858,0.0001,2]
[356490012,1742527832139,-6973.55718314,0.0001,2]